Cogmind - Beta 13 @@@ ROGUE MODE // 2024.05.22 @ 15:54:33 Player: dp-fld Result: Self-destructed Performance ------------- Evolutions (4) 2000 Regions Visited (17) 3400 Robots Destroyed (241) 1205 Value Destroyed (12493) 12493 Prototype IDs (52) 1040 Alien Tech Used (0) 0 Bonus (7885) 7885 TOTAL SCORE: 28023 Bonus ------- High Alert Combat Kills 1528 Follower Combat Kills 2575 Entered Garrisons 1000 Used RIF Installer 3000 Aligned with FarCom 300 Friendly Fire -518 Cogmind --------- Core Integrity 775/850 Matter 166/300 Energy 160/160 System Corruption 2% Temperature Cool (0) Movement Rolling (126) Ox2 Location -6/Factory Parts ------- > --- POWER (1) -------- Light Fission Core > --- PROPULSION (3) --- Compact Wheel Compact Wheel Armored Wheel > --- UTILITY (9) ------ Huge Storage Unit Structural Scanner Modified TNC Improved Utility Shielding Improved Light Armor Plating Relay Coupler [NC] (6) Relay Coupler [Grunt] (33) Relay Coupler [Sentry] (26) Relay Coupler [Hunter] (25) > --- WEAPON (2) ------- Coil Gun Power Sword > --- INVENTORY (25) --- Wheel Advanced Cooling System Transmission Jammer ECM Suite Advanced Phase Shifter Advanced Hacking Suite Relay Coupler [NC] (37) Relay Coupler [NC] (37) Relay Coupler [Swarmer] (52) Relay Coupler [Grunt] (34) Relay Coupler [Grunt] (35) Relay Coupler [Grunt] (34) Relay Coupler [Grunt] (36) Relay Coupler [Sentry] (32) Relay Coupler [Hunter] (26) Relay Coupler [Behemoth] (16) Dynamic Insulation System Improved Trap Extractor (0/6) Sensor Drone Bay (20/20) Gauss Cannon Magnetic Acceleration Cannon Improved Grenade Launcher Heavy Missile Launcher Remote Datajack Improved Plasma Cutter Peak State ------------ > --- POWER ------------ Neutrino Core > --- PROPULSION ------- Armored Wheel Armored Huge Wheel > --- UTILITY ---------- Advanced Cooling System Huge Storage Unit Hardened Medium Armor Plating Medium Reflective Plating Relay Coupler [NC] Relay Coupler [Sentry] Relay Coupler [Hunter] > --- WEAPON ----------- Variable Charge Gun Hypervelocity Coil Gun > --- INVENTORY -------- Armored Wheel Armored Wheel Armored Wheel Structural Scanner Modified TNC Transmission Jammer Advanced Phase Shifter Utility Shielding Improved Thermal Shield Advanced Hacking Suite Relay Coupler [NC] Relay Coupler [NC] Relay Coupler [Swarmer] Relay Coupler [Sentry] Relay Coupler [Hunter] Relay Coupler [Behemoth] Dynamic Insulation System Sensor Drone Bay Improved Arc Projector Coil Gun Heavy Missile Launcher Improved Remote Datajack Improved Plasma Cutter Katana [Rating: 62] Favorites ----------- Power Light Nuclear Core Engine Heavy Ion Engine Power Core Light Nuclear Core Propulsion Armored Wheel Treads Light Treads Leg Aluminum Leg Wheel Armored Wheel Utility Huge Storage Unit Device Heat Sink Storage Huge Storage Unit Processor Modified TNC Hackware Relay Coupler [Sentry] Protection Light Armor Plating Weapon Advanced Beam Cannon Energy Gun Medium Laser Energy Cannon Advanced Beam Cannon Ballistic Gun Hypervelocity Coil Gun Ballistic Cannon Light Cannon Launcher Rocket Launcher Special Weapon Improved Remote Datajack Impact Weapon Heavy Flail Slashing Weapon Katana Special Melee Weapon Improved Datajack Build | -11 -10 -10 -9 -9 -9 -8 -8 -8 -8 -8 -7 -7 -7 -7 -7 -7 -6 ------- Run | Yrd Mat Min Mat Min Exi Min Mat Gar Mat Gar Fac Gar Fac Gar Fac Gar Fac Slots Evolved 8 | . . . 2 . . . 2 . . . 2 . . . . . 2 Power . | . . . . . . . . . . . . . . . . . . Propulsion 1 | . . . 1 . . . . . . . . . . . . . . Utility 7 | . . . 1 . . . 2 . . . 2 . . . . . 2 Weapon . | . . . . . . . . . . . . . . . . . . Parts Attached 421 | 1 15 7 54 6 2 1 24 42 11 52 14 35 . 41 43 36 37 Power 20 | . 2 . 6 . . . 2 2 . 1 . 1 . 1 3 1 1 Engine 9 | . 1 . 6 . . . . 2 . . . . . . . . . Core 11 | . 1 . . . . . 2 . . 1 . 1 . 1 3 1 1 Reactor . | . . . . . . . . . . . . . . . . . . Propulsion 83 | . 8 4 19 1 1 1 4 8 2 7 5 2 . 4 6 3 8 Treads 45 | . 6 4 19 1 1 1 4 3 1 1 . . . . . 2 2 Leg 2 | . 2 . . . . . . . . . . . . . . . . Wheel 36 | . . . . . . . . 5 1 6 5 2 . 4 6 1 6 Hover . | . . . . . . . . . . . . . . . . . . Flight . | . . . . . . . . . . . . . . . . . . Utility 123 | 1 3 3 15 . . . 5 14 3 14 3 9 . 7 22 9 15 Device 45 | 1 . . 8 . . . 3 8 . 3 1 1 . 1 11 . 8 Storage 4 | . 1 1 . . . . . . . . . . . . 2 . . Processor 3 | . . . . . . . . 1 1 . . . . . 1 . . Hackware 31 | . . . . . . . . 1 . 6 1 8 . 5 1 8 1 Protection 40 | . 2 2 7 . . . 2 4 2 5 1 . . 1 7 1 6 Artifact . | . . . . . . . . . . . . . . . . . . Weapon 195 | . 2 . 14 5 1 . 13 18 6 30 6 23 . 29 12 23 13 Energy Gun 17 | . . . 1 . . . . . . 5 . 3 . 7 1 . . Energy Cannon 18 | . . . 6 1 . . 5 6 . . . . . . . . . Ballistic Gun 48 | . . . 6 1 . . 3 5 1 7 2 7 . 7 3 4 2 Ballistic Cannon 11 | . 2 . . . . . . . . . . . . . 1 5 3 Launcher 32 | . . . . 3 . . 2 6 2 4 1 3 . 3 2 6 . Special Weapon 32 | . . . . . . . . . . 7 1 6 . 7 2 6 3 Impact Weapon 13 | . . . . . . . 3 . 3 7 . . . . . . . Slashing Weapon 21 | . . . . . . . . . . . 2 4 . 5 3 2 5 Piercing Weapon . | . . . . . . . . . . . . . . . . . . Special Melee Weapon 3 | . . . 1 . 1 . . 1 . . . . . . . . . Unidentified Prototypes 8 | . . . 7 . . . . . . . . . . . 1 . . Parts Lost 40 | . . . 12 . . . 2 6 1 4 . . . 6 4 4 1 Power 6 | . . . 2 . . . . 1 . . . . . 1 1 1 . Propulsion 18 | . . . 5 . . . 2 2 1 2 . . . 1 3 1 1 Utility 8 | . . . 3 . . . . 1 . 2 . . . 1 . 1 . Weapon 8 | . . . 2 . . . . 2 . . . . . 3 . 1 . Highest Loss Streak 5 | . . . 4 . . . 2 3 1 3 . . . 5 2 1 1 To Critical Strikes . | . . . . . . . . . . . . . . . . . . Average Slot Usage (%) 97 | . 99 100 99 100 100 100 99 99 94 95 96 91 92 93 97 99 98 Engine 3 | . 6 . 10 11 11 11 3 5 9 6 . . . . . . . Core 4 | . 7 14 . . . . 5 3 . 2 7 7 7 6 6 7 6 Treads 13 | . 13 28 33 33 33 33 27 5 . 6 . . . . . 1 3 Wheel 11 | . . . . . . . . 21 24 20 20 15 15 17 20 20 16 Device 10 | . . . 11 11 11 11 27 22 9 12 9 3 7 12 3 . 6 Storage 9 | . 14 14 11 11 11 11 9 9 9 9 7 7 7 7 7 7 6 Processor 1 | . . . . . . . . 1 3 . . . . . 3 7 6 Hackware 12 | . . . . . . . . . . 5 22 26 30 30 30 30 26 Protection 10 | . 13 14 10 11 11 11 8 10 20 14 11 14 7 2 6 7 12 Energy Gun 2 | . 19 14 . . . . . . . 2 . 3 7 4 . . . Energy Cannon 5 | . . . 16 13 11 11 11 10 . . . . . . . . . Ballistic Gun 3 | . . . 4 . . . 2 3 11 8 3 3 . 2 4 2 2 Ballistic Cannon 1 | . 8 14 . . . . . . . . . . . . 1 2 . Launcher 1 | . . . . 8 5 . . 3 1 . . . . . . . . Special Weapon 1 | . . . . . . . . . . 2 6 4 . 3 3 4 3 Slashing Weapon 1 | . . . . . . . . . . . 1 1 7 2 4 3 5 Naked Turns . | . . . . . . . . . . . . . . . . . . Heaviest Build 134 | 13 33 93 104 100 100 97 109 125 134 134 120 123 111 114 109 118 116 Greatest Support 66 | 20 46 40 66 60 60 60 66 63 36 36 40 40 40 40 44 34 44 Greatest Overweight (x) 9 | . . 2 1 1 1 1 1 3 5 8 3 3 2 8 4 9 4 Average Overweight (x) 2 | . . 1 1 1 1 1 1 2 3 4 2 2 2 2 2 3 2 Largest Inventory Capacity 25 | 8 15 25 25 25 25 25 25 25 25 25 25 25 25 25 25 25 25 Average Capacity 24 | 8 11 23 25 25 25 25 25 25 25 25 25 25 25 25 25 25 25 Most Carried 25 | 7 15 25 25 25 25 25 25 25 25 25 25 25 25 25 25 25 25 Average Carried 24 | 6 10 21 24 25 24 25 24 24 24 24 24 24 25 24 24 24 24 Final Capacity 25 | 8 15 25 25 25 25 25 25 25 25 25 25 25 25 25 25 25 25 Final Carried 25 | 7 15 25 25 25 25 25 25 25 25 25 25 25 25 25 25 25 25 Class Distribution -------------------- 28% | Scavenger-Mutant 22% | Mutant 21% | Botlord-Mutant 19% | Bothacker-Mutant 7% | Botlord-Assassin Dominant Class ---------------- Mutant | -10/Materials Mutant | -10/Mines Scavenger-Mutant | -9/Materials Scavenger-Mutant | -9/Mines Scavenger-Mutant | -9/Exiles Mutant | -8/Mines Mutant | -8/Materials Mutant | -8/Garrison Bothacker-Mutant | -8/Materials Bothacker-Mutant | -8/Garrison Bothacker-Mutant | -7/Factory Bothacker-Mutant | -7/Garrison Botlord-Mutant | -7/Factory Botlord-Mutant | -7/Garrison Botlord-Mutant | -7/Factory Botlord-Mutant | -7/Garrison Botlord-Assassin | -6/Factory Resources | -11 -10 -10 -9 -9 -9 -8 -8 -8 -8 -8 -7 -7 -7 -7 -7 -7 -6 ----------- Run | Yrd Mat Min Mat Min Exi Min Mat Gar Mat Gar Fac Gar Fac Gar Fac Gar Fac Matter Collected 8168 | 210 234 110 931 161 . . 426 681 476 988 328 743 . 796 704 750 630 Remotely 21 | . . . 21 . . . . . . . . . . . . . . Salvage Created 10153 | 74 355 96 1985 233 . . 1124 822 371 1422 49 997 . 929 641 282 773 Parts 520 | 4 24 8 125 21 . . 52 41 22 72 2 29 . 33 40 15 32 Haulers Intercepted 11 | . 1 . 5 . . . 2 . 1 . . . . . 2 . . Recyclers Shooed 6 | . . . 1 . . . 1 . 1 . . . . . 2 . 1 Parts Field Recycled . | . . . . . . . . . . . . . . . . . . Retrieved Matter . | . . . . . . . . . . . . . . . . . . Parts Self-Destructed . | . . . . . . . . . . . . . . . . . . Prevented . | . . . . . . . . . . . . . . . . . . Kills | -11 -10 -10 -9 -9 -9 -8 -8 -8 -8 -8 -7 -7 -7 -7 -7 -7 -6 ------- Run | Yrd Mat Min Mat Min Exi Min Mat Gar Mat Gar Fac Gar Fac Gar Fac Gar Fac Combat Hostiles Destroyed 206 | . 10 4 37 14 . . 22 29 7 22 2 14 . 20 8 11 6 Melee 4 | . . . . . . . . . 1 . . . . 3 . . . Guns 70 | . 6 2 13 1 . . 4 2 4 17 . 8 . 6 . 4 3 Cannons 68 | . 4 2 24 4 . . 13 12 . . . . . . 3 3 3 AOE 62 | . . . . 9 . . 4 14 2 5 2 6 . 11 5 4 . Classes Destroyed 18 | 2 4 1 4 2 . . 1 1 . 1 . . . 2 . . . Worker 5 | . . . 2 1 . . . . . . 1 . . . 1 . . Builder 6 | . . . 1 . . . 1 . . . . . . . 2 . 2 Tunneler 2 | 1 . 1 . . . . . . . . . . . . . . . Hauler 11 | . 1 . 5 . . . 2 . 1 . . . . . 2 . . Recycler 11 | 1 . . 2 1 . . . . . . . . . . 3 . 4 Mechanic 1 | . . . 1 . . . . . . . . . . . . . . Watcher 3 | . 1 . . . . . 1 . . . . . . . . . 1 Swarmer 61 | . 3 3 6 6 . . 3 11 2 3 2 8 . 6 . 5 3 Cutter 1 | . . . . . . . . . . . . . . 1 . . . Grunt 82 | . 7 . 20 2 . . 14 11 3 8 . 4 . 4 6 3 . Brawler 7 | . . . . 1 . . . 1 1 1 . 1 . 1 . 1 . Duelist 6 | . . . 1 . . . . 3 . . . . . 2 . . . Sentry 24 | . . 1 10 . . . 4 2 1 6 . . . . . . . Specialist 4 | . . . . . . . . . . . . . . 3 . 1 . Hunter 4 | . . . . . . . 1 . . 2 . 1 . . . . . Programmer 9 | . . . . . . . . . . 2 . . . 2 1 1 3 Behemoth 1 | . . . . . . . . 1 . . . . . . . . . Assembled 5 | . . . . 5 . . . . . . . . . . . . . Savage 1 | . . . . . . . . . . . . . . . 1 . . Guerrilla 1 | . . . . . . . . . . . . . . . 1 . . Infiltrator 1 | . . . . . . . . . . . . . . 1 . . . Best Kill Streak 7 | 1 2 3 6 5 . . 5 7 3 6 3 5 . 4 4 6 3 Combat Bots Only 7 | . 2 3 6 4 . . 4 7 3 6 2 5 . 4 4 6 3 Max Kills in Single Turn 4 | 1 1 1 2 3 . . 3 3 1 3 3 4 . 4 3 4 1 Gunslinging . | . . . . . . . . . . . . . . . . . . Exploded 4 | . . . . 3 . . 3 3 1 3 2 4 . 4 2 4 . Melee 1 | . . . . . . . . . 1 . . . . 1 . . . Uniques/NPCs Destroyed . | . . . . . . . . . . . . . . . . . . Combat | -11 -10 -10 -9 -9 -9 -8 -8 -8 -8 -8 -7 -7 -7 -7 -7 -7 -6 -------- Run | Yrd Mat Min Mat Min Exi Min Mat Gar Mat Gar Fac Gar Fac Gar Fac Gar Fac Hostile Shots Fired 1125 | . 34 22 285 47 . . 105 99 48 128 24 59 . 104 57 64 49 Missed 339 | . 13 2 78 12 . . 22 25 21 49 12 19 . 32 16 25 13 Damage Taken 11516 | . 232 180 2654 451 . . 1286 1567 263 1072 136 417 . 1366 827 578 487 Core 1116 | . 31 8 254 38 . . 68 156 . 99 5 20 . 261 46 55 75 Absorbed by Shields . | . . . . . . . . . . . . . . . . . . Redirected to Shielding 18 | . . . . . . . . . . . . . . . . . 18 Ignored by Resistances 487 | . . . . . . . 45 104 45 128 14 61 . . . 41 49 Regen/Repaired (Parts) 337 | . . . . . . . 159 . . . . . . . . . 178 Core Remaining (%) 59 | 100 . 84 . . . 27 . . . 41 . . . . . 44 . Volleys Fired 758 | 5 30 10 111 24 . . 72 99 28 100 18 64 . 80 30 36 51 Largest 2 | 2 2 2 2 2 . . 2 2 2 2 1 2 . 2 2 2 2 Hottest 290 | 100 100 85 136 136 . . 136 136 70 290 35 114 . 260 87 76 81 Shots Fired 1219 | 10 60 20 222 37 . . 136 159 46 148 18 84 . 110 47 53 69 Gun 636 | 10 39 10 107 3 . . 48 22 41 131 8 61 . 84 20 18 34 Cannon 418 | . 21 10 115 25 . . 86 110 . . . . . . 17 16 18 Launcher 76 | . . . . 9 . . 2 27 5 2 1 4 . 11 5 10 . Special 89 | . . . . . . . . . . 15 9 19 . 15 5 9 17 Kinetic 540 | . 21 10 107 3 . . 48 22 41 89 8 42 . 26 37 34 52 Thermal 495 | 10 39 10 115 25 . . 86 110 . 28 . 19 . 53 . . . Explosive 76 | . . . . 9 . . 2 27 5 2 1 4 . 11 5 10 . Electromagnetic 22 | . . . . . . . . . . 15 . . . 7 . . . Robot Hit Streak 18 | 2 12 6 11 6 . . 16 12 10 18 5 18 . 10 5 7 6 Robot Miss Streak 6 | 3 3 4 4 6 . . 3 4 3 3 2 4 . 5 3 2 4 Penetration Max 2 | . . . . . . . . . 2 2 1 2 . 1 1 . . Secondary Targets 4 | . . . . . . . 1 . . 2 . . . 1 . . . Max Gunslinging Chain 1 | . . . . . . . 1 . . 1 . . . 1 . . . Shots Hit Robots 818 | 4 42 12 144 17 5 . 97 83 36 106 11 75 . 74 35 23 54 Core Hits 391 | 3 18 5 59 18 . . 44 45 19 43 5 26 . 44 29 19 14 Critical Kills 20 | . . . . . . . 1 1 3 12 . 3 . . . . . Critical Parts Destroyed 38 | . . . . . . . . 3 8 17 . 7 . 3 . . . Critical Strikes 72 | . 1 2 . . . . 1 4 12 30 1 16 . 3 2 . . Burn 2 | . 1 1 . . . . . . . . . . . . . . . Meltdown 1 | . . . . . . . 1 . . . . . . . . . . Destroy 60 | . . . . . . . . 4 11 30 1 11 . 3 . . . Blast 3 | . . 1 . . . . . . . . . . . . 2 . . Smash 1 | . . . . . . . . . 1 . . . . . . . . Sever 5 | . . . . . . . . . . . . 5 . . . . . Melee Attacks 184 | . . . . . 5 . 10 2 6 28 7 32 . 28 13 13 40 Impact 48 | . . . . . . . 10 . 6 28 4 . . . . . . Slashing 129 | . . . . . . . . . . . 3 32 . 28 13 13 40 Piercing . | . . . . . . . . . . . . . . . . . . Sneak Attacks 24 | . . . . . 5 . 2 . . . . . . 1 6 . 10 Combat Hostiles 1 | . . . . . . . . . . . . . . 1 . . . Follow-up Attacks . | . . . . . . . . . . . . . . . . . . Damage Inflicted 21835 | 49 643 199 2898 870 . . 2558 2864 743 1504 172 2001 . 2783 1881 1092 1578 Guns 6598 | 49 343 88 1394 48 . . 506 276 261 1113 46 446 . 1049 285 208 486 Cannons 5506 | . 292 105 1471 254 . . 1328 1063 . . . . . . 298 235 460 Explosions 6367 | . . . . 568 . . 381 1525 343 391 126 445 . 1057 882 649 . Melee 3317 | . . . . . . . 343 . 139 . . 1110 . 677 416 . 632 Ramming 47 | . 8 6 33 . . . . . . . . . . . . . . Kinetic 5959 | . 292 105 1394 48 . . 506 276 261 501 46 172 . 386 583 443 946 Thermal 6047 | 49 343 88 1471 355 . . 1328 1063 . 465 . 274 . 611 . . . Explosive 6266 | . . . . 467 . . 381 1525 343 391 126 445 . 1057 882 649 . Electromagnetic 199 | . . . . . . . . . . 147 . . . 52 . . . Impact 482 | . . . . . . . 343 . 139 . . . . . . . . Slashing 2835 | . . . . . . . . . . . . 1110 . 677 416 . 632 Piercing . | . . . . . . . . . . . . . . . . . . Highest Corruption 10 | . . . . . . . . . . . . . . 3 5 10 2 Average Corruption 3 | . . . . . . . . . . . . . . 2 4 6 1 Corruption Purged 5 | . . . . . . . . . . . . . . . 5 . . Corruption Blocked . | . . . . . . . . . . . . . . . . . . Effects 116 | . . . . . . . . . . . . . . 26 45 35 10 Message Errors 29 | . . . . . . . . . . . . . . 6 10 11 2 Matter Fused 28 | . . . . . . . . . . . . . . 7 13 7 1 Heat Flow Errors 14 | . . . . . . . . . . . . . . 1 6 3 4 Energy Discharges 17 | . . . . . . . . . . . . . . 5 6 5 1 Data Loss (minor) 17 | . . . . . . . . . . . . . . 4 6 5 2 Data Loss (major) 3 | . . . . . . . . . . . . . . . 2 1 . Misfires 6 | . . . . . . . . . . . . . . 3 1 2 . Alerts 2 | . . . . . . . . . . . . . . . 1 1 . Overload Shots 7 | . . . . . . . . . . 3 . . . 4 . . . Overflow Damage 552 | . 7 . 12 13 . . 60 164 . 21 . 83 . 28 51 5 108 Projectiles 117 | . 7 . 12 2 . . . 33 . . . . . . 8 . 55 Explosions 224 | . . . . 11 . . 20 131 . 21 . 1 . 27 8 5 . Melee 211 | . . . . . . . 40 . . . . 82 . 1 35 . 53 Knockbacks 11 | . 3 1 . . . . 1 . . . . . . . 3 . 3 Impact 1 | . . . . . . . 1 . . . . . . . . . . Kinetic 10 | . 3 1 . . . . . . . . . . . . 3 . 3 Secondary . | . . . . . . . . . . . . . . . . . . Self-Inflicted Damage 376 | . . . . 85 . . . 118 25 22 . . . 108 18 . . Shots 12 | . . . . 2 . . . 3 1 2 . . . 3 1 . . Rammed 7 | . 1 1 5 . . . . . . . . . . . . . . Targets Rammed 8 | . 1 2 5 . . . . . . . . . . . . . . Kicked . | . . . . . . . . . . . . . . . . . . Crushed 1 | . . 1 . . . . . . . . . . . . . . . Highest Temperature 375 | 117 264 284 337 84 . . 192 306 7 375 11 311 . 228 247 150 219 Average Temperature 73 | 51 79 113 96 26 . . 63 45 7 72 8 96 . 85 56 30 88 Received Heat Transfer 3975 | . 111 33 1188 24 . . 684 636 72 567 42 189 . 93 186 150 . Effects 5 | . 1 . 1 . . . . . . . . 3 . . . . . Energy Bleed 3 | . 1 . 1 . . . . . . . . 1 . . . . . Interference 2 | . . . . . . . . . . . . 2 . . . . . Siege Activations . | . . . . . . . . . . . . . . . . . . Robots Corrupted . | . . . . . . . . . . . . . . . . . . Combat Hostiles . | . . . . . . . . . . . . . . . . . . Parts Fried . | . . . . . . . . . . . . . . . . . . Impact Corruptions 2 | . . . . . . . 2 . . . . . . . . . . Robots Melted 2 | . . . . . . . 1 1 . . . . . . . . . Combat Hostiles 2 | . . . . . . . 1 1 . . . . . . . . . Parts Melted 18 | . 3 . 3 2 . . 4 3 . 1 . . . . . 2 . Heat Transferred 10595 | 148 1036 333 2479 594 . . 2294 1794 . 657 . 407 . 853 . . . Parts Sabotaged . | . . . . . . . . . . . . . . . . . . Parts Stolen . | . . . . . . . . . . . . . . . . . . Parts Stripped . | . . . . . . . . . . . . . . . . . . Power Chain Reactions . | . . . . . . . . . . . . . . . . . . Alert | -11 -10 -10 -9 -9 -9 -8 -8 -8 -8 -8 -7 -7 -7 -7 -7 -7 -6 ------- Run | Yrd Mat Min Mat Min Exi Min Mat Gar Mat Gar Fac Gar Fac Gar Fac Gar Fac Peak Influence 1454 | 10 246 187 640 402 . . 297 1218 741 1454 763 941 493 1410 796 1355 741 Initial 763 | . 6 92 . 249 . . . 24 593 354 763 140 493 345 739 424 711 Average 436 | 6 104 29 261 239 . . 124 633 615 831 414 428 493 833 594 939 247 Maximum Alert Level 4 | . 1 . 2 2 . . 1 4 3 4 3 3 2 4 3 4 3 Low Security (%) 36 | 100 91 100 54 41 . 100 78 24 . . . 11 . . . . 68 Level 1 15 | . 8 . 16 50 . . 21 13 . 11 59 50 . 3 . . 3 Level 2 27 | . . . 29 7 . . . 15 89 29 35 19 100 46 86 21 12 Level 3 13 | . . . . . . . . 32 10 30 5 17 . 23 13 36 15 Level 4 7 | . . . . . . . . 13 . 28 . . . 25 . 42 . Level 5 . | . . . . . . . . . . . . . . . . . . High Security . | . . . . . . . . . . . . . . . . . . Max Security . | . . . . . . . . . . . . . . . . . . Squads Dispatched 31 | . 5 . 4 . . . 5 . 1 . 4 . . . 9 . 3 Investigation 10 | . 4 . 2 . . . . . . . 1 . . . 3 . . Extermination 7 | . . . . . . . . . . . 2 . . . 3 . 2 Reinforcement 7 | . 1 . 2 . . . 2 . . . . . . . 1 . 1 Assault 3 | . . . . . . . . . 1 . . . . . 2 . . Garrison 4 | . . . . . . . 3 . . . 1 . . . . . . Intercept . | . . . . . . . . . . . . . . . . . . Searches Triggered . | . . . . . . . . . . . . . . . . . . Construction Impeded . | . . . . . . . . . . . . . . . . . . Haulers Reinforced . | . . . . . . . . . . . . . . . . . . Active Scanning Responses . | . . . . . . . . . . . . . . . . . . Cargo Convoy Interrupts . | . . . . . . . . . . . . . . . . . . Alert ID Control Effect 49 | . . . . . . . . . . 1 9 12 . 13 2 12 . Stealth | -11 -10 -10 -9 -9 -9 -8 -8 -8 -8 -8 -7 -7 -7 -7 -7 -7 -6 --------- Run | Yrd Mat Min Mat Min Exi Min Mat Gar Mat Gar Fac Gar Fac Gar Fac Gar Fac Distress Signals 7 | . . . 4 . . . 1 . 1 . . . . . . . 1 Communications Jammed . | . . . . . . . . . . . . . . . . . . Distress Signals . | . . . . . . . . . . . . . . . . . . Times Spotted 370 | . 23 5 62 24 . . 37 22 16 31 14 23 . 39 24 36 14 Peak Tracking Total 16 | . 6 3 7 16 . . 4 4 5 4 4 7 . 6 5 9 3 Tactical Retreats 21 | . 3 . 1 4 . . 2 . 3 . . 1 . 1 2 1 3 Traps | -11 -10 -10 -9 -9 -9 -8 -8 -8 -8 -8 -7 -7 -7 -7 -7 -7 -6 ------- Run | Yrd Mat Min Mat Min Exi Min Mat Gar Mat Gar Fac Gar Fac Gar Fac Gar Fac Traps Triggered 39 | . 3 . . . . . . 3 . 9 . 1 . 8 7 8 . Indirectly . | . . . . . . . . . . . . . . . . . . Trap Hack Attempts 16 | . . . 16 . . . . . . . . . . . . . . Triggered . | . . . . . . . . . . . . . . . . . . Disarmed 1 | . . . 1 . . . . . . . . . . . . . . Reprogrammed 4 | . . . . . . . 4 . . . . . . . . . . Reused 1 | . . . 1 . . . . . . . . . . . . . . Traps Extracted . | . . . . . . . . . . . . . . . . . . Installed 3 | . . . 3 . . . . . . . . . . . . . . Triggered 1 | . . . 1 . . . . . . . . . . . . . . Most Traps Carried 5 | . . 5 5 2 2 2 2 . . . . . . . . . . Machines | -11 -10 -10 -9 -9 -9 -8 -8 -8 -8 -8 -7 -7 -7 -7 -7 -7 -6 ---------- Run | Yrd Mat Min Mat Min Exi Min Mat Gar Mat Gar Fac Gar Fac Gar Fac Gar Fac Machines Disabled 44 | . . . 1 3 . . 2 8 . 5 . 6 . 11 4 4 . Max in Single Turn 2 | . . . 1 1 . . 1 1 . 1 . 1 . 2 1 1 . Garrison Access 2 | . . . . . . . . . . . . . . . 1 . 1 Garrison Relay 31 | . . . . . . . . 5 . 5 . 5 . 10 . 6 . Phase Generator 2 | . . . . . . . . . . . . 1 . . . 1 . Machines Repaired . | . . . . . . . . . . . . . . . . . . Machines Dismantled 13 | . . . . . . . . . . 1 . 2 . 4 . 6 . Machines Sabotaged . | . . . . . . . . . . . . . . . . . . Overloaded Fab Kills . | . . . . . . . . . . . . . . . . . . Hacking | -11 -10 -10 -9 -9 -9 -8 -8 -8 -8 -8 -7 -7 -7 -7 -7 -7 -6 --------- Run | Yrd Mat Min Mat Min Exi Min Mat Gar Mat Gar Fac Gar Fac Gar Fac Gar Fac Machines Accessed 93 | . 9 1 12 . 2 . 9 2 4 3 8 4 1 2 19 5 12 Terminals 66 | . 7 . 9 . . . 5 2 3 3 5 4 . 2 13 5 8 Fabricators 1 | . . . . . . . . . . . . . . . 1 . . Repair Stations 5 | . . . 1 . . . 2 . . . . . . . . . 2 Recycling Units 7 | . 2 . 1 . . . . . . . 1 . . . 3 . . Scanalyzers 4 | . . . 1 . . . 1 . . . 1 . . . . . 1 Garrison Access 7 | . . . . . . . 1 . 1 . 1 . 1 . 2 . 1 Total Hacks 200 | . 19 1 30 . 2 . 33 4 11 4 15 7 1 5 33 8 27 Successful 81 | . 8 1 15 . 2 . 18 1 5 . 7 2 1 . 7 1 13 Failed 117 | . 11 . 15 . . . 14 3 6 4 8 5 . 5 26 7 13 Catastrophic 34 | . 4 . 3 . . . 4 . 2 2 3 3 . . 8 1 4 Database Lockouts 2 | . . . . . . . 1 . . . . . . . . . 1 Manual 97 | . 12 . 17 . 1 . 15 . 9 1 4 3 . 3 18 2 12 Terminals 155 | . 17 . 24 . . . 25 4 10 4 9 7 . 5 23 8 19 Fabricators 1 | . . . . . . . . . . . . . . . 1 . . Repair Stations 11 | . . . 2 . . . 4 . . . . . . . . . 5 Recycling Units 14 | . 2 . 3 . . . . . . . 2 . . . 7 . . Scanalyzers 9 | . . . 1 . . . 3 . . . 3 . . . . . 2 Garrison Access 7 | . . . . . . . 1 . 1 . 1 . 1 . 2 . 1 Terminal Hacks 48 | . 6 1 10 . 2 . 10 1 3 . 4 2 . . 3 1 5 Record 2 | . 1 . . . 1 . . . . . . . . . . . . Part Schematic 2 | . . . . . . . . . . . . . . . . . 2 Robot Analysis 6 | . 2 . 2 . . . 2 . . . . . . . . . . Prototype ID Bank 4 | . . . 3 . . . . . . . . . . . . . 1 Open Door 2 | . . 1 . . . . . . . . . 1 . . . . . Terminal Index 1 | . . . . . . . . . . . 1 . . . . . . Alert Level 2 | . . . 1 . . . 1 . . . . . . . . . . Unreport Threat 7 | . . . 1 . . . 3 . 1 . 1 . . . 1 . . Locate Traps 5 | . 2 . 1 . . . 1 . . . . . . . 1 . . Reprogram Traps 1 | . . . . . . . 1 . . . . . . . . . . Recall Reinforcements 1 | . . . . . . . . . . . . . . . . . 1 Hauler Manifests 7 | . 1 . 1 . . . 1 . 1 . 1 . . . 1 . 1 Registered Components 2 | . . . . . . . 1 . . . 1 . . . . . . Zone Layout 2 | . . . 1 . . . . . 1 . . . . . . . . Garrison Registry 1 | . . . . . . . . 1 . . . . . . . . . Patrol Navigation 1 | . . . . . . . . . . . . . . . . 1 . Security Stations 1 | . . . . . . . . . . . . 1 . . . . . Derelict Proto ID Bank 1 | . . . . . 1 . . . . . . . . . . . . Fabricator Hacks . | . . . . . . . . . . . . . . . . . . Repair Station Hacks 8 | . . . 1 . . . 3 . . . . . . . . . 4 Scan Component 6 | . . . 1 . . . 2 . . . . . . . . . 3 Repair 2 | . . . . . . . 1 . . . . . . . . . 1 Recycling Unit Hacks 3 | . . . 1 . . . . . . . 1 . . . 1 . . Retrieve Components 3 | . . . 1 . . . . . . . 1 . . . 1 . . Scanalyzer 2 | . . . . . . . 1 . . . . . . . . . 1 Insert Component 2 | . . . . . . . 1 . . . . . . . . . 1 Garrison Access Hacks 7 | . . . . . . . 1 . 1 . 1 . 1 . 2 . 1 Unlock Access 5 | . . . . . . . 1 . 1 . 1 . 1 . 1 . . Seal Access 2 | . . . . . . . . . . . . . . . 1 . 1 Unauthorized Hacks 13 | . 2 . 3 . . . 3 . 1 . 1 . . . 1 . 2 Terminals 7 | . . . 1 . . . 3 . 1 . . . . . . . 2 Assimilate 1 | . . . . . . . . . . . . . . . . . 1 Botnet 6 | . . . 1 . . . 3 . 1 . . . . . . . 1 Fabricators 1 | . . . . . . . . . . . . . . . 1 . . Liberate 1 | . . . . . . . . . . . . . . . 1 . . Repair Stations . | . . . . . . . . . . . . . . . . . . Recycling Units 4 | . 2 . 1 . . . . . . . 1 . . . . . . Reject 1 | . . . . . . . . . . . 1 . . . . . . Tunnel 3 | . 2 . 1 . . . . . . . . . . . . . . Scanalyzers 1 | . . . 1 . . . . . . . . . . . . . . Extract 1 | . . . 1 . . . . . . . . . . . . . . Garrison Access . | . . . . . . . . . . . . . . . . . . Data Cores Recovered 1 | . . . . . . . . . . . . . . . 1 . . Used 1 | . . . . . . . . . . . . . . . 1 . . Hacking Detections 81 | . 7 . 10 . . . 8 2 4 3 8 3 1 2 17 5 11 Full Trace Events 5 | . 2 . . . . . . . . . 1 . . . 2 . . Feedback Events 1 | . . . . . . . . . . . . . . . 1 . . Corruption 1 | . . . . . . . . . . . . . . . 1 . . Feedback Blocked . | . . . . . . . . . . . . . . . . . . Robot Schematics Acquired . | . . . . . . . . . . . . . . . . . . Robots Built . | . . . . . . . . . . . . . . . . . . Authchips . | . . . . . . . . . . . . . . . . . . Time . | . . . . . . . . . . . . . . . . . . Total Robot Build Rating . | . . . . . . . . . . . . . . . . . . Part Schematics Acquired 7 | . . . 6 . . . . . . . . . . . . . 1 Parts Built . | . . . . . . . . . . . . . . . . . . Authchips . | . . . . . . . . . . . . . . . . . . Time . | . . . . . . . . . . . . . . . . . . Total Part Build Rating . | . . . . . . . . . . . . . . . . . . Parts Repaired 2 | . . . . . . . 1 . . . . . . . . . 1 Time 54 | . . . . . . . 38 . . . . . . . . . 16 Parts Recycled . | . . . . . . . . . . . . . . . . . . Recycled Matter . | . . . . . . . . . . . . . . . . . . Retrieved Matter . | . . . . . . . . . . . . . . . . . . Retrieved Components 20 | . . . 10 . . . . . . . 2 . . . 8 . . Parts Scanalyzed 2 | . . . . . . . 1 . . . . . . . . . 1 Part Schematics Acquired . | . . . . . . . . . . . . . . . . . . Parts Damaged . | . . . . . . . . . . . . . . . . . . Bothacking | -11 -10 -10 -9 -9 -9 -8 -8 -8 -8 -8 -7 -7 -7 -7 -7 -7 -6 ------------ Run | Yrd Mat Min Mat Min Exi Min Mat Gar Mat Gar Fac Gar Fac Gar Fac Gar Fac Used RIF Installer 6 | . . . . . . . . 2 . 1 . 1 . 1 . 1 . Coupler Efficiency 1 | . . . . . . . . . . . . 1 . . . . . Zone Cloak 1 | . . . . . . . . . . . . . . 1 . . . Robot Detection 1 | . . . . . . . . . . . . . . . . 1 . Watcher Feeds 1 | . . . . . . . . . . 1 . . . . . . . Alert ID Control 1 | . . . . . . . . 1 . . . . . . . . . Robots Hacked 48 | . . . . . 4 . . 2 . 7 5 8 . 7 2 7 6 Non-combat 11 | . . . . . 3 . . . . . 2 . . . . . 6 Combat 37 | . . . . . 1 . . 2 . 7 3 8 . 7 2 7 . Robot Hacks Applied 57 | . . . . . 4 . . 2 . 10 6 8 . 7 2 7 11 parse_system 9 | . . . . . 4 . . 1 . . . . . 1 . . 3 purge_threat 4 | . . . . . . . . . . . 1 . . . . . 3 block_reporting 1 | . . . . . . . . . . . 1 . . . . . . map_route 1 | . . . . . . . . . . . . . . . . . 1 mark_security 1 | . . . . . . . . . . . . . . . . . 1 scatter_targeting 5 | . . . . . . . . . . 1 2 1 . . . 1 . broadcast_data 1 | . . . . . . . . . . 1 . . . . . . . overload_power 1 | . . . . . . . . . . 1 . . . . . . . amplify_resonance 5 | . . . . . . . . . . 1 . 2 . . . 2 . disable_weapons 1 | . . . . . . . . . . . . 1 . . . . . overwrite_iff 7 | . . . . . . . . . . 2 . 1 . 3 . 1 . streamctrl_high 1 | . . . . . . . . 1 . . . . . . . . . formatsys_low 3 | . . . . . . . . . . . . . . . . . 3 formatsys_high 17 | . . . . . . . . . . 4 2 3 . 3 2 3 . Relay Couplers Released 128 | . . . . . . . . 21 . 22 . 21 . 40 . 24 . Machine Destruction 128 | . . . . . . . . 21 . 22 . 21 . 40 . 24 . Attached 31 | . . . . . . . . 1 . 6 1 8 . 5 1 8 1 Fabnet Peak Effective % . | . . . . . . . . . . . . . . . . . . Robots Rewired 14 | . . . . . . . . . . 2 . 6 . 6 . . . Allies Hacked 4 | . . . . . . . . . . . . . . 2 1 . 1 Hacks Repelled . | . . . . . . . . . . . . . . . . . . Allies | -11 -10 -10 -9 -9 -9 -8 -8 -8 -8 -8 -7 -7 -7 -7 -7 -7 -6 -------- Run | Yrd Mat Min Mat Min Exi Min Mat Gar Mat Gar Fac Gar Fac Gar Fac Gar Fac Total Allies 60 | . . 1 . 1 . . . 1 . 7 2 11 . 16 11 6 4 Largest Group 8 | . . 1 . 1 . . . 1 . 4 5 5 5 7 8 8 3 Highest-Rated Group 263 | . . 31 . 31 . . . 15 . 63 89 148 148 263 247 247 71 Highest-Rated Ally 95 | . . 31 . 31 . . . 15 . 31 32 32 32 95 39 39 26 Total Orders 29 | . . . . . . . . . . 2 4 16 . 3 . . 4 STAY 15 | . . . . . . . . . . 1 2 9 . 3 . . . FOLLOW 12 | . . . . . . . . . . 1 2 7 . . . . 2 AID 1 | . . . . . . . . . . . . . . . . . 1 PICKUP 1 | . . . . . . . . . . . . . . . . . 1 Ally Attacks 426 | . . . . 4 . . . 6 . 16 58 57 . 80 72 133 . Total Damage 8676 | . . . . 43 . . . 189 . 224 824 1377 . 2468 1143 2408 . Kills 91 | . . . . 1 . . . . . 4 10 14 . 20 12 30 . Allies Corrupted 3 | . . . . . . . . . . . 1 1 . 1 . . . Allies Melted 1 | . . . . . . . . . . . . . . 1 . . . Intel | -11 -10 -10 -9 -9 -9 -8 -8 -8 -8 -8 -7 -7 -7 -7 -7 -7 -6 ------- Run | Yrd Mat Min Mat Min Exi Min Mat Gar Mat Gar Fac Gar Fac Gar Fac Gar Fac Robot Analysis Total 6 | . 2 . 2 . . . 2 . . . . . . . . . . Derelict Logs Recovered 3 | . . 1 . 2 . . . . . . . . . . . . . Drone Launches . | . . . . . . . . . . . . . . . . . . Drone Recoveries . | . . . . . . . . . . . . . . . . . . Exploration | -11 -10 -10 -9 -9 -9 -8 -8 -8 -8 -8 -7 -7 -7 -7 -7 -7 -6 ------------- Run | Yrd Mat Min Mat Min Exi Min Mat Gar Mat Gar Fac Gar Fac Gar Fac Gar Fac Turns Passed 28868 | 49 1133 1710 3902 1379 1108 26 2691 2084 573 2111 977 1930 103 2084 2953 1511 2544 Spaces Moved 14883 | 27 721 604 1404 541 458 11 916 1170 319 1021 637 1201 82 1253 2188 883 1447 Core . | . . . . . . . . . . . . . . . . . . Treads 4344 | . 281 604 1404 541 458 11 916 129 . . . . . . . . . Legs 467 | 27 440 . . . . . . . . . . . . . . . . Wheels 10072 | . . . . . . . . 1041 319 1021 637 1201 82 1253 2188 883 1447 Hover . | . . . . . . . . . . . . . . . . . . Flight . | . . . . . . . . . . . . . . . . . . Fastest Speed 116 | 120 120 160 240 240 240 240 240 120 135 120 120 125 125 120 116 116 120 Average Speed 163 | 120 135 273 240 240 240 242 244 143 141 151 131 128 125 124 124 133 135 Slowest Speed 330 | 120 160 320 240 240 240 243 246 330 165 210 135 140 125 210 150 225 150 Overloaded Moves . | . . . . . . . . . . . . . . . . . . Propulsion Burnouts . | . . . . . . . . . . . . . . . . . . Robots Hopped . | . . . . . . . . . . . . . . . . . . Cave-ins Triggered . | . . . . . . . . . . . . . . . . . . Exploration Rate (%) 61 | 3 98 97 92 93 72 10 79 86 32 68 22 93 4 78 61 89 38 Regions Visited 17 Branch Regions 4 Pre-discovered Areas 5 | . 2 . 1 1 1 . . . . . . . . . . . . Known Exits Taken 5 | . . . . . . . 1 . 1 . 1 . 1 . 1 . . Unknown Exits Taken 7 | 1 1 1 1 1 1 1 . . . . . . . . . . . Scrap Searched 3 | . . 1 . 2 . . . . . . . . . . . . . Spaces Dug 76 | . . . . . . . 5 . 2 11 7 . . . 6 17 28 Terrain Destroyed 662 | . . . . 92 . . 28 118 38 26 9 26 . 114 63 118 30 Melee 61 | . . . . . . . 5 . 2 11 7 . . . 6 2 28 Projectile 16 | . . . . 1 . . . 2 . 2 . . . 4 5 . 2 AOE 580 | . . . . 91 . . 23 116 35 11 2 24 . 110 52 116 . Terrain Rammed . | . . . . . . . . . . . . . . . . . . Walls Destroyed . | . . . . . . . . . . . . . . . . . . Machines Disabled . | . . . . . . . . . . . . . . . . . . Actions | -11 -10 -10 -9 -9 -9 -8 -8 -8 -8 -8 -7 -7 -7 -7 -7 -7 -6 --------- Run | Yrd Mat Min Mat Min Exi Min Mat Gar Mat Gar Fac Gar Fac Gar Fac Gar Fac Total 18009 | 33 818 645 1755 587 468 12 1236 1427 387 1382 750 1448 82 1608 2355 1110 1906 Wait 1019 | . 24 . 63 12 . . 177 33 9 104 65 60 . 80 45 40 307 Move 14867 | 26 720 603 1403 540 457 10 916 1168 319 1019 637 1199 82 1252 2188 881 1447 Hop . | . . . . . . . . . . . . . . . . . . Pick Up 179 | 1 13 14 39 2 2 . 17 28 5 8 3 12 . 10 11 4 10 Fast Attach 62 | 1 5 . 17 . . . 2 3 2 4 2 2 . 4 11 4 5 Attach 49 | . . . 11 . . . 4 10 . 4 2 1 . 6 5 2 4 Detach 11 | . 1 . 1 . . . 1 3 1 . 1 . . . 2 1 . Swap 311 | . 10 7 27 6 2 1 18 29 9 44 10 32 . 31 27 30 28 Drop 217 | . 14 9 59 3 2 1 19 28 8 6 5 14 . 7 23 5 14 Fire 758 | 5 30 10 111 24 . . 72 99 28 100 18 64 . 80 30 36 51 Melee 184 | . . . . . 5 . 10 2 6 28 7 32 . 28 13 13 40 Ram . | . . . . . . . . . . . . . . . . . . Kick . | . . . . . . . . . . . . . . . . . . Crush 8 | . 1 2 5 . . . . . . . . . . . . . . Escape Stasis 192 | . . . . . . . . 24 . 32 . 8 . 64 . 64 . Rewire 67 | . . . . . . . . . . 25 . 12 . 29 . 1 . Trap 19 | . . . 19 . . . . . . . . . . . . . . Miscellaneous 66 | . . . . . . . . . . 8 . 12 . 17 . 29 . Route ------- -11/Scrapyard -10/Materials (discovered 5 exits: *Mat x3 / *Min x2) -10/Mines (discovered 2 exits: *Mat x2) -9/Materials (discovered 6 exits: *Mat x3 / [*Min] / [*Sto x2]) -9/Mines (discovered 4 exits: *Mat x2 / *Exi / [*Zio]) -9/Exiles (discovered 2 exits: [*Min x2]) -8/Mines -8/Materials (discovered 4 exits: *Fac x3 / Gar) -8/Garrison (discovered 3 exits: *Mat x3) -8/Materials -8/Garrison (discovered 2 exits: *Fac x2) -7/Factory (discovered 2 exits: [*Low] / Gar) -7/Garrison (discovered 3 exits: *Fac x3) -7/Factory -7/Garrison (discovered 4 exits: *Fac x3 / *Fac) -7/Factory (discovered 5 exits: *Fac x2 / [*Low x2] / Gar) -7/Garrison (discovered 3 exits: *Fac x3) -6/Factory (discovered 1 exit: [*Low]) History --------- Turn | Location | Event 1 | -11/Scrapyard | Discovered new exit (range 3) 50 | -11/Scrapyard | Entered Materials 182 | -10/Materials | Discovered new exit (range 13) 318 | -10/Materials | Build established: Mutant 341 | -10/Materials | Discovered new exit (range 7) 385 | -10/Materials | Discovered new exit (range 13) 457 | -10/Materials | Discovered new exit (range 15) 579 | -10/Materials | Discovered new exit (range 3) 1183 | -10/Materials | Entered Mines 1188 | -10/Mines | Found the Drone Emporium 1194 | -10/Mines | Found Prototype Device 1247 | -10/Mines | Discovered new exit (range 8) 1315 | -10/Mines | Joined a pair of Derelicts in attacking an 0b10 outpost 1372 | -10/Mines | Discovered new exit (range 7) 1396 | -10/Mines | Found a damaged Exp. Sensor Array with a note attached 1401 | -10/Mines | Found Prototype Device 1448 | -10/Mines | Learned Materials trap positions 1504 | -10/Mines | Found a hidden stash of uninstalled traps 2134 | -10/Mines | Received a Mining Laser from a helpful Derelict 2893 | -10/Mines | Entered Materials 2893 | -9/Materials | Evolved 2 slots: Propulsion x1, Utility x1 2894 | -9/Materials | Loaded intel: 11 trap records 3100 | -9/Materials | Lost 3 parts (2n1u) 3437 | -9/Materials | Identified Exp. Sensor Array 3438 | -9/Materials | Identified Sensor Drone Bay 3821 | -9/Materials | Build established: Scavenger-Mutant 4054 | -9/Materials | Discovered new exit (range 15) 4292 | -9/Materials | Discovered new exit (range 10) 4518 | -9/Materials | Discovered new exit (range 14) 5038 | -9/Materials | Discovered new exit (range 3) 5080 | -9/Materials | Core integrity fell below 50% 5253 | -9/Materials | Discovered new exit (range 9) 5675 | -9/Materials | Lost 4 parts (1p1n1u1w) 5829 | -9/Materials | Discovered new exit (range 3) 6795 | -9/Materials | Entered Mines 6899 | -9/Mines | Escorted by a lone wolf Derelict 6908 | -9/Mines | Discovered new exit (range 4) 7036 | -9/Mines | Assembled infested the area 7041 | -9/Mines | Assisted by a Guerilla fighting off Assembled 7090 | -9/Mines | Learned location of Zion (-7) 7462 | -9/Mines | Learned 2 Materials zone layouts 7571 | -9/Mines | Discovered new exit (range 12) 7775 | -9/Mines | A Derelict revealed a hidden shortcut to a safe place 8165 | -9/Mines | Deemed a non-threat by the Exiles lab entrance 8165 | -9/Mines | Discovered new exit (range 5) 8174 | -9/Mines | Entered Exiles 8206 | -9/Exiles | Discovered new exit (range 15) 8234 | -9/Exiles | Met 8R-AWN 8268 | -9/Exiles | Met EX-HEX 8364 | -9/Exiles | Met EX-BIN 8434 | -9/Exiles | Aligned with FarCom system 8436 | -9/Exiles | Given EX-Vault access code 8496 | -9/Exiles | Opened EX-Vault 8518 | -9/Exiles | Found Modified TNC 8611 | -9/Exiles | Warned to stay clear of 0b10 Research branches 8697 | -9/Exiles | Met EX-DEC 9253 | -9/Exiles | Discovered new exit (range 14) 9282 | -9/Exiles | Left Exiles lab with Modified TNC 9282 | -9/Exiles | Entered Mines 9282 | -8/Mines | Discovered new exit (range 11) 9308 | -8/Mines | Entered Materials 9308 | -8/Materials | Evolved 2 slots: Utility x2 10228 | -8/Materials | Discovered new exit (range 13) 10635 | -8/Materials | Discovered new exit (range 4) 10674 | -8/Materials | Build established: Mutant 10716 | -8/Materials | Central database locked down 11251 | -8/Materials | Discovered new exit (range 7) 11435 | -8/Materials | Garrison activated, responded to threat 11761 | -8/Materials | Repaired Reactive Plating 11999 | -8/Materials | Identified exit to Garrison 11999 | -8/Materials | Entered Garrison 12007 | -8/Garrison | Triggered checkpoint 12365 | -8/Garrison | Triggered checkpoint 12408 | -8/Garrison | Garrison Relay disabled 12417 | -8/Garrison | Lost 3 parts (1n1u1w) 12514 | -8/Garrison | Triggered checkpoint 12585 | -8/Garrison | Triggered checkpoint 12605 | -8/Garrison | Garrison Relay disabled 12650 | -8/Garrison | Discovered new exit (range 13) 12727 | -8/Garrison | Triggered checkpoint 12800 | -8/Garrison | Triggered checkpoint 12824 | -8/Garrison | Destroyed 7 combat bots 12875 | -8/Garrison | Discovered new exit (range 11) 12935 | -8/Garrison | Triggered checkpoint 12985 | -8/Garrison | Garrison Relay disabled 13098 | -8/Garrison | Triggered checkpoint 13209 | -8/Garrison | Discovered new exit (range 13) 13259 | -8/Garrison | Discovered new exit (range 5) 13259 | -8/Garrison | Discovered new exit (range 76) 13259 | -8/Garrison | Discovered new exit (range 80) 13277 | -8/Garrison | Installed Relay Interface Framework 13296 | -8/Garrison | Garrison Relay disabled 13385 | -8/Garrison | Garrison Relay disabled 13562 | -8/Garrison | Expanded RIF knowledge: Alert ID Control 13591 | -8/Garrison | Build established: Bothacker-Mutant 13687 | -8/Garrison | Spotted B-75 Beast 13765 | -8/Garrison | Triggered checkpoint 13906 | -8/Garrison | Destroyed B-75 Beast 14083 | -8/Garrison | Entered Materials 14483 | -8/Materials | First assault squad dispatched 14656 | -8/Materials | Identified exit to Garrison 14656 | -8/Materials | Entered Garrison 14842 | -8/Garrison | Triggered checkpoint 14895 | -8/Garrison | Garrison Relay disabled 15098 | -8/Garrison | Triggered checkpoint 15234 | -8/Garrison | Discovered new exit (range 13) 15266 | -8/Garrison | Triggered checkpoint 15314 | -8/Garrison | Expanded RIF knowledge: Watcher Feeds 15729 | -8/Garrison | Garrison Relay disabled 15745 | -8/Garrison | Garrison Relay disabled 15898 | -8/Garrison | Triggered checkpoint 15912 | -8/Garrison | Triggered checkpoint 15914 | -8/Garrison | Core integrity fell below 50% 15915 | -8/Garrison | Triggered checkpoint 16022 | -8/Garrison | Triggered checkpoint 16090 | -8/Garrison | Discovered new exit (range 11) 16204 | -8/Garrison | Lost 3 parts (2n1u) 16330 | -8/Garrison | Triggered checkpoint 16378 | -8/Garrison | Garrison Relay disabled 16700 | -8/Garrison | Garrison Relay disabled 16767 | -8/Garrison | Entered Factory 16767 | -7/Factory | Accompanied by 4 allies 16767 | -7/Factory | Evolved 2 slots: Utility x2 17334 | -7/Factory | Discovered new exit (range 14) 17625 | -7/Factory | Garrison activated, responded to threat 17736 | -7/Factory | Identified exit to Garrison 17744 | -7/Factory | Entered Garrison 17744 | -7/Garrison | Accompanied by 1 ally 17859 | -7/Garrison | Triggered checkpoint 17920 | -7/Garrison | Triggered checkpoint 17972 | -7/Garrison | Garrison Relay disabled 18066 | -7/Garrison | Triggered checkpoint 18214 | -7/Garrison | Triggered checkpoint 18278 | -7/Garrison | Garrison Relay disabled 18314 | -7/Garrison | Triggered checkpoint 18408 | -7/Garrison | Phase Generator disabled 18432 | -7/Garrison | Rescued a captive Derelict 18456 | -7/Garrison | Discovered new exit (range 3) 18600 | -7/Garrison | Triggered checkpoint 18635 | -7/Garrison | Triggered checkpoint 18642 | -7/Garrison | Triggered checkpoint 18717 | -7/Garrison | Discovered new exit (range 11) 18760 | -7/Garrison | Triggered checkpoint 18906 | -7/Garrison | Expanded RIF knowledge: Coupler Efficiency 18985 | -7/Garrison | Garrison Relay disabled 19076 | -7/Garrison | Triggered checkpoint 19090 | -7/Garrison | Garrison Relay disabled 19196 | -7/Garrison | Build established: Botlord-Mutant 19329 | -7/Garrison | Learned Factory security intel 19442 | -7/Garrison | Triggered checkpoint 19553 | -7/Garrison | Garrison Relay disabled 19636 | -7/Garrison | Triggered checkpoint 19637 | -7/Garrison | Discovered new exit (range 10) 19674 | -7/Garrison | Entered Factory 19674 | -7/Factory | Accompanied by 5 allies 19777 | -7/Factory | Identified exit to Garrison 19777 | -7/Factory | Entered Garrison 19777 | -7/Garrison | Accompanied by 5 allies 19805 | -7/Garrison | Triggered checkpoint 19903 | -7/Garrison | Garrison Relay disabled 19987 | -7/Garrison | Triggered checkpoint 20022 | -7/Garrison | Discovered new exit (range 5) 20033 | -7/Garrison | Lost 3 allies 20104 | -7/Garrison | Found embedded Infiltrators 20183 | -7/Garrison | P-60 Hacker assimilated allied QG-RYU(x) 20241 | -7/Garrison | Lost 6 allies 20287 | -7/Garrison | Garrison Relay disabled 20304 | -7/Garrison | Garrison Relay disabled 20316 | -7/Garrison | Garrison Relay disabled 20331 | -7/Garrison | Garrison Relay disabled 20380 | -7/Garrison | Triggered checkpoint 20383 | -7/Garrison | Triggered checkpoint 20444 | -7/Garrison | Discovered new exit (range 10) 20685 | -7/Garrison | Triggered checkpoint 20717 | -7/Garrison | Garrison Relay disabled 20821 | -7/Garrison | Triggered checkpoint 20884 | -7/Garrison | Discovered new exit (range 11) 20911 | -7/Garrison | Triggered checkpoint 20957 | -7/Garrison | Triggered checkpoint 20973 | -7/Garrison | Garrison Relay disabled 21145 | -7/Garrison | Discovered new exit (range 10) 21193 | -7/Garrison | Triggered checkpoint 21308 | -7/Garrison | Expanded RIF knowledge: Zone Cloak 21320 | -7/Garrison | Garrison Relay disabled 21389 | -7/Garrison | Triggered checkpoint 21424 | -7/Garrison | Triggered checkpoint 21472 | -7/Garrison | Lost 3 allies 21495 | -7/Garrison | Lost 5 parts (1p1n3w) 21621 | -7/Garrison | Rescued a captive Derelict 21623 | -7/Garrison | Rescued a captive Derelict 21693 | -7/Garrison | Triggered checkpoint 21698 | -7/Garrison | Garrison Relay disabled 21723 | -7/Garrison | Build established: Scavenger-Mutant 21861 | -7/Garrison | Entered Factory 21861 | -7/Factory | Accompanied by 5 allies 22008 | -7/Factory | Lost 3 allies 22965 | -7/Factory | Discovered new exit (range 15) 23181 | -7/Factory | Build established: Botlord-Mutant 23592 | -7/Factory | Discovered new exit (range 15) 23861 | -7/Factory | First assault squad dispatched 23871 | -7/Factory | Discovered new exit (range 15) 23881 | -7/Factory | Allied Derelicts emerged from ambush trap array 23897 | -7/Factory | Discovered new exit (range 8) 24520 | -7/Factory | Allied Derelicts emerged from ambush trap array 24807 | -7/Factory | Identified exit to Garrison 24814 | -7/Factory | Entered Garrison 24814 | -7/Garrison | Accompanied by 8 allies 24916 | -7/Garrison | Triggered checkpoint 24964 | -7/Garrison | Garrison Relay disabled 24995 | -7/Garrison | Garrison Relay disabled 25113 | -7/Garrison | Triggered checkpoint 25115 | -7/Garrison | Triggered checkpoint 25174 | -7/Garrison | Lost 3 allies 25184 | -7/Garrison | Triggered checkpoint 25252 | -7/Garrison | Triggered checkpoint 25267 | -7/Garrison | Discovered new exit (range 12) 25289 | -7/Garrison | Expanded RIF knowledge: Robot Detection 25434 | -7/Garrison | Triggered checkpoint 25446 | -7/Garrison | Core integrity fell below 50% 25482 | -7/Garrison | Rescued a captive Derelict 25492 | -7/Garrison | Rescued a captive Derelict 25505 | -7/Garrison | Garrison Relay disabled 25666 | -7/Garrison | Discovered new exit (range 15) 25749 | -7/Garrison | Phase Generator disabled 25887 | -7/Garrison | Garrison Relay disabled 25926 | -7/Garrison | Triggered checkpoint 25949 | -7/Garrison | System corruption reached 10% 25964 | -7/Garrison | Garrison Relay disabled 25972 | -7/Garrison | Lost 3 allies 26257 | -7/Garrison | Triggered checkpoint 26281 | -7/Garrison | Discovered new exit (range 12) 26325 | -7/Garrison | Entered Factory 26325 | -6/Factory | Evolved 2 slots: Utility x2 26785 | -6/Factory | Build established: Botlord-Assassin 26812 | -6/Factory | Discovered new exit (range 15) 28109 | -6/Factory | Central database locked down 28511 | -6/Factory | Repaired Arm. Wheel 28869 | -6/Factory | Self-destructed Last Messages --------------- 28759_ U-05 Engineer destroyed. 28762_ Acquired 17 matter. 28790_ Slug penetrates Wall. 28792_ P-60 Hacker fails to hack Smith 5a. 28801_ Slug penetrates P-60 Hacker. 28801_ Door malfunctions. 28804_ Slug penetrates P-60 Hacker. 28804_ Destroyed Shock Rifle. 28808_ P-60 Hacker hacks Smith 5a, rebooting. 28810_ Slug penetrates P-60 Hacker. 28810_ Destroyed Imp. Heat Sink. 28810_ Slug penetrates Wall. 28810_ Destroyed Gravmag System. 28810_ Destroyed Imp. Heat Sink. 28813_ Destroyed Shock Rifle. 28813_ Smith 5a reactivates. 28819_ Smith 5a repairs Gauss Cannon. 28825_ Acquired 1 matter. 28831_ Acquired 2 matter. 28833_ Acquired 6 matter. Map ----- +----------------------------------------------------+ | ????????? # =] ##??## ##?????????????????? | | ????????? # = ##??## ##?????????????????? | | # # """ ###??## ##?????????????????? | | ########### """ ##???## ##?????????????????? | | ^ ! """ ##???## ##?????????????????? | | ^ ##?#### ######## ???????? | | ^ ##?####+###############????? | | ^ #### ##### ##????? | | ^ #### ##### """ """?? ##????? | | ##### T############# p + """"" """"??????????? | | ########################### """"" """"" ##????? | | ##????????######### ##????? | | " ##???????????????## """ """?? ##????? | | " ##???????????????## """"" """"??????????? | | " ##???????????????## """"" """""?? ##????? | | " ! ###################! # ????? | | " ###################;#########+#???## ????? | | " # # # ??????????? | | " """ # """" # # ?????????????? | | " R" # """" # # ?????????????? | | " """ # """" # ! + ?????????????? | | # """" # # ?????????????? | | ######### """" # # ?????????????? | | # """" # # ?????????????? | | # """" # R # ?????????????? | | # ; [m @ # ?????????????? | | + """" ################## ?????????????? | | # """" ################## ?????????????? | | # """" ##??????????????????????????????? | | # """" ##??????????????????????????????? | | ###+###+# """" ##??????????????????????????????? | | # """" ##??????????????????????????????? | | # ##??????????????????????????????? | | !!! # ##??????????????????????????????? | | !!! # ! ##??????????????????????????????? | | !! ###########??????????????????????????????? | | ###########??????????????????????????????? | | """ ! ##???????????????????????????????????????? | | """ ##???????????????????????????????????????? | | """ ##???????????????????????????????????????? | | ##???????????????????????????????????????? | | ? ##???????????????????????????????????????? | | ##???????????????????????????????????????? | | ##########???????????????????????????????????????? | | ##########???????????????????????????????????????? | | ?????????????????????????????????????????????????? | | ?????????????????????????????????????????????????? | | ?????????????????????????????????????????????????? | | ?????????????????????????????????????????????????? | | ?????????????????????????????????????????????????? | +----------------------------------------------------+ Best States ------------- Heat Dissipation 68 Coolant Potential 80 Energy Generation 19 Energy Capacity 315 Matter Stores 300 Matter Capacity 350 Sight Range 16 Terrain Scan Density 10 ECM Strength 1 EM Shielding 2 Armor Coverage 750 Resistance: KI 30 Resistance: TH 25 Power Shielding 33 Utility Shielding 66 Evasion (%) 55 Targeting Accuracy 8 Recoil Reduction 3 Relay Coupler Types 5 Relay Coupler Value 152 Item Schematics ----------------- Lgt. Armor Plating | -9/Materials | Extracted Shield Generator | -9/Materials | Extracted EMP Blaster | -9/Materials | Extracted Aluminum Leg | -9/Materials | Extracted Autogun | -9/Materials | Extracted Flight Unit | -9/Materials | Extracted Arm. Huge Wheel | -6/Factory | Hacked Robot Schematics ------------------ None Fabricated ------------ Nothing Alien Tech Used ----------------- None Achievements -------------- None Challenges ------------ None Game ------ Seed AlloyTractorBarrier Manual? 0 Play Time 05:41:20 Cumulative 407.8 hours Start 2024.05.19 @ 20:43:34 End 2024.05.22 @ 15:54:33 Sessions 11 Manual Loads 0 Difficulty Rogue Special Mode None Game No. 127 Rogue 88 Adventurer 0 Explorer 39 Win Type - Total 12 Types 10/1/1/0/0/0/0/0/0 Lore% 74 Gallery% 80 Achievement% 69 Wizard Run 0 Options --------- Layout 0 ASCII 1 Keyboard 1 Movement Arrows Keybinds 0 Fullscreen 2 Font 36/Smallcaps Map View 76x50 Zoom Use 0% Tactical HUD 1 Map Filters NONE Filters NONE Steam 1 RUN: 0ecbab0c-f0f3-4559-afd6-a1d6e3ecc38e